[Event "Live Chess"]
[Site "Chess.com"]
[Date "2024.06.02"]
[Round "-"]
[White "KeithArkell"]
[Black "friarnator"]
[Result "1-0"]
[WhiteElo "2396"]
[BlackElo "2153"]
[TimeControl "300"]
[EndTime "1:40:32 PDT"]
[Termination "KeithArkell won by resignation"]

1. d4 {[%clk 0:04:58.2]} 1... Nf6 {[%clk 0:04:56.5]} 2. Nf3 {[%clk 0:04:57.5]}
2... g6 {[%clk 0:04:55.7]} 3. c4 {[%clk 0:04:56.9]} 3... Bg7 {[%clk 0:04:53.8]}
4. Nc3 {[%clk 0:04:56.7]} 4... O-O {[%clk 0:04:53]} 5. g3 {[%clk 0:04:56.4]}
5... d6 {[%clk 0:04:51.4]} 6. Bg2 {[%clk 0:04:56.1]} 6... Nbd7 {[%clk 0:04:48]}
7. d5 {[%clk 0:04:55.5]} 7... a6 {[%clk 0:04:38]} 8. O-O {[%clk 0:04:53.1]} 8...
Rb8 {[%clk 0:04:37.3]} 9. Nd4 {[%clk 0:04:51.8]} 9... Ne5 {[%clk 0:04:16.2]} 10.
b3 {[%clk 0:04:49.6]} 10... c5 {[%clk 0:03:48]} 11. dxc6 {[%clk 0:04:43]} 11...
Nxc6 {[%clk 0:03:40.4]} 12. Bxc6 {[%clk 0:04:41.8]} 12... bxc6 {[%clk
0:03:40.3]} 13. Nxc6 {[%clk 0:04:41]} 13... Qc7 {[%clk 0:03:18.7]} 14. Nxb8
{[%clk 0:04:40.1]} 14... Qxb8 {[%clk 0:03:18.6]} 15. Bb2 {[%clk 0:04:38.9]}
15... Bh3 {[%clk 0:03:12.7]} 16. Qd2 {[%clk 0:04:37.7]} 16... Ng4 {[%clk
0:02:57.6]} 17. Nd5 {[%clk 0:04:31.3]} 17... Bxb2 {[%clk 0:02:32.3]} 18. Nxe7+
{[%clk 0:04:28.8]} 18... Kg7 {[%clk 0:02:21.7]} 19. Qxb2+ {[%clk 0:04:28.7]}
19... f6 {[%clk 0:02:19.9]} 20. Nd5 {[%clk 0:04:26.2]} 20... Qa7 {[%clk
0:01:53]} 21. e3 {[%clk 0:04:19.7]} 21... h5 {[%clk 0:01:13.6]} 22. Nf4 {[%clk
0:03:49.9]} 22... Bxf1 {[%clk 0:01:05.5]} 23. Rxf1 {[%clk 0:03:48.8]} 23... Re8
{[%clk 0:00:59.8]} 24. Qd4 {[%clk 0:03:45.5]} 24... Qxd4 {[%clk 0:00:44.1]} 25.
exd4 {[%clk 0:03:44]} 25... g5 {[%clk 0:00:43.8]} 26. Nxh5+ {[%clk 0:03:36.6]}
26... Kg6 {[%clk 0:00:42.6]} 27. h3 {[%clk 0:03:36.1]} 27... Kxh5 {[%clk
0:00:41.3]} 28. hxg4+ {[%clk 0:03:35.3]} 28... Kxg4 {[%clk 0:00:41.2]} 29. Rc1
{[%clk 0:03:30.5]} 29... f5 {[%clk 0:00:26.9]} 30. Kg2 {[%clk 0:03:27.2]} 30...
Re2 {[%clk 0:00:24.5]} 31. c5 {[%clk 0:03:26.4]} 31... dxc5 {[%clk 0:00:23.6]}
32. dxc5 {[%clk 0:03:25.8]} 32... f4 {[%clk 0:00:20.4]} 33. gxf4 {[%clk
0:03:24.3]} 33... gxf4 {[%clk 0:00:18.6]} 34. c6 {[%clk 0:03:20.4]} 34... f3+
{[%clk 0:00:11.2]} 35. Kg1 {[%clk 0:03:18.2]} 35... Re8 {[%clk 0:00:09]} 36. c7
{[%clk 0:03:17]} 36... Rc8 {[%clk 0:00:08.3]} 37. Kh2 {[%clk 0:03:16]} 37...
Rh8+ {[%clk 0:00:06.3]} 38. Kg1 {[%clk 0:03:15.2]} 38... Rc8 {[%clk 0:00:06.2]}
39. Rc4+ {[%clk 0:03:14.1]} 39... Kf5 {[%clk 0:00:04.9]} 40. Kh2 {[%clk
0:03:11.9]} 40... Ke5 {[%clk 0:00:02.7]} 41. Kg3 {[%clk 0:03:11.2]} 41... Kd5
{[%clk 0:00:01.6]} 42. Kxf3 {[%clk 0:03:10.4]} 1-0

[Event "Live Chess"]
[Site "Chess.com"]
[Date "2024.06.02"]
[Round "-"]
[White "MaksymYurii"]
[Black "GEMdzq"]
[Result "0-1"]
[WhiteElo "997"]
[BlackElo "2301"]
[TimeControl "300"]
[EndTime "1:41:13 PDT"]
[Termination "GEMdzq won by checkmate"]

1. e4 {[%clk 0:04:57.9]} 1... Nf6 {[%clk 0:04:58.7]} 2. Nf3 {[%clk 0:04:57.2]}
2... Nxe4 {[%clk 0:04:57.3]} 3. Bd3 {[%clk 0:04:56.4]} 3... Nc5 {[%clk 0:04:55]}
4. Nc3 {[%clk 0:04:52.7]} 4... Nxd3+ {[%clk 0:04:53.7]} 5. cxd3 {[%clk
0:04:52.6]} 5... e6 {[%clk 0:04:52.8]} 6. O-O {[%clk 0:04:50.4]} 6... Be7 {[%clk
0:04:52.2]} 7. b4 {[%clk 0:04:48.7]} 7... d5 {[%clk 0:04:51.7]} 8. b5 {[%clk
0:04:47.1]} 8... O-O {[%clk 0:04:50.4]} 9. a4 {[%clk 0:04:44.7]} 9... d4 {[%clk
0:04:43.8]} 10. Ne4 {[%clk 0:04:39.5]} 10... f5 {[%clk 0:04:42.7]} 11. Ng3
{[%clk 0:04:33]} 11... Nd7 {[%clk 0:04:40]} 12. Ba3 {[%clk 0:04:29.9]} 12...
Bxa3 {[%clk 0:04:37.8]} 13. Rxa3 {[%clk 0:04:28.5]} 13... e5 {[%clk 0:04:36.1]}
14. Re1 {[%clk 0:04:23.9]} 14... Qf6 {[%clk 0:04:33.6]} 15. Nh5 {[%clk
0:04:02.4]} 15... Qd6 {[%clk 0:04:26.4]} 16. Ra1 {[%clk 0:03:42.1]} 16... b6
{[%clk 0:04:24.8]} 17. Rc1 {[%clk 0:03:38.7]} 17... Bb7 {[%clk 0:04:23.3]} 18.
Qe2 {[%clk 0:03:27.9]} 18... Rae8 {[%clk 0:04:21]} 19. Nh4 {[%clk 0:02:33.8]}
19... Nc5 {[%clk 0:04:09.1]} 20. Nxg7 {[%clk 0:02:26.8]} 20... Kxg7 {[%clk
0:04:08]} 21. Qh5 {[%clk 0:02:10.4]} 21... Kh8 {[%clk 0:03:40.4]} 22. Nxf5
{[%clk 0:01:50.6]} 22... Qg6 {[%clk 0:03:35.8]} 23. Qxg6 {[%clk 0:01:34.7]}
23... hxg6 {[%clk 0:03:35.7]} 24. Nh4 {[%clk 0:01:25.4]} 24... Kg7 {[%clk
0:03:34.6]} 25. Re4 {[%clk 0:01:19.1]} 25... Bxe4 {[%clk 0:03:31.3]} 26. dxe4
{[%clk 0:01:17.2]} 26... Re7 {[%clk 0:03:28]} 27. g3 {[%clk 0:01:05.7]} 27...
Nxe4 {[%clk 0:03:26.3]} 28. f4 {[%clk 0:01:03.9]} 28... Nxd2 {[%clk 0:03:25]}
29. fxe5 {[%clk 0:01:00.5]} 29... Nf3+ {[%clk 0:03:24.3]} 30. Nxf3 {[%clk
0:00:58.9]} 30... Rxf3 {[%clk 0:03:24.2]} 31. Re1 {[%clk 0:00:57.4]} 31... Re3
{[%clk 0:03:23.2]} 32. Rxe3 {[%clk 0:00:55.9]} 32... dxe3 {[%clk 0:03:23.1]} 33.
Kf1 {[%clk 0:00:54.5]} 33... Rxe5 {[%clk 0:03:23]} 34. Ke2 {[%clk 0:00:53.8]}
34... Kf6 {[%clk 0:03:22.7]} 35. Kf3 {[%clk 0:00:52.4]} 35... Kf5 {[%clk
0:03:22.6]} 36. Ke2 {[%clk 0:00:51.7]} 36... Ke4 {[%clk 0:03:21.9]} 37. Ke1
{[%clk 0:00:51]} 37... Rc5 {[%clk 0:03:21.8]} 38. a5 {[%clk 0:00:48]} 38... Rc2
{[%clk 0:03:21.7]} 39. axb6 {[%clk 0:00:46]} 39... Kd3 {[%clk 0:03:21.6]} 40.
bxc7 {[%clk 0:00:44.8]} 40... Rc1# {[%clk 0:03:19.8]} 0-1

[Event "Live Chess"]
[Site "Chess.com"]
[Date "2024.06.02"]
[Round "-"]
[White "NottheBishopSacrifice"]
[Black "DavrosLight"]
[Result "1-0"]
[WhiteElo "2316"]
[BlackElo "791"]
[TimeControl "300"]
[EndTime "1:41:33 PDT"]
[Termination "NottheBishopSacrifice won by resignation"]

1. Nf3 {[%clk 0:04:58.8]} 1... Nf6 {[%clk 0:04:55.2]} 2. g3 {[%clk 0:04:58.3]}
2... e6 {[%clk 0:04:51.9]} 3. Bg2 {[%clk 0:04:57.9]} 3... d5 {[%clk 0:04:51.2]}
4. O-O {[%clk 0:04:57.4]} 4... Nc6 {[%clk 0:04:48.8]} 5. d4 {[%clk 0:04:56.7]}
5... Bd6 {[%clk 0:04:42.2]} 6. c4 {[%clk 0:04:54.6]} 6... dxc4 {[%clk
0:04:32.8]} 7. Qa4 {[%clk 0:04:52.7]} 7... Bd7 {[%clk 0:04:21.3]} 8. Qxc4 {[%clk
0:04:52]} 8... O-O {[%clk 0:04:18.2]} 9. Nc3 {[%clk 0:04:46.4]} 9... Na5 {[%clk
0:04:06.5]} 10. Qd3 {[%clk 0:04:43.3]} 10... a6 {[%clk 0:04:02.9]} 11. e4 {[%clk
0:04:39.8]} 11... Bb5 {[%clk 0:03:59.6]} 12. Nxb5 {[%clk 0:04:37.4]} 12... axb5
{[%clk 0:03:53]} 13. e5 {[%clk 0:04:36.7]} 13... Bxe5 {[%clk 0:03:38.9]} 14.
Nxe5 {[%clk 0:04:34]} 14... c5 {[%clk 0:03:31.4]} 15. Qxb5 {[%clk 0:04:31.3]}
15... cxd4 {[%clk 0:03:24.9]} 16. Bd2 {[%clk 0:04:27.6]} 16... Qc7 {[%clk
0:03:11.5]} 17. Rac1 {[%clk 0:04:24.2]} 17... Qd6 {[%clk 0:02:55.6]} 18. Bb4
{[%clk 0:04:19.8]} 18... Qa6 {[%clk 0:02:36.5]} 19. Qxa6 {[%clk 0:04:17.1]}
19... Rxa6 {[%clk 0:02:32.2]} 20. Bxf8 {[%clk 0:04:16.6]} 20... Kxf8 {[%clk
0:02:28.7]} 21. Rc8+ {[%clk 0:04:16.5]} 21... Ne8 {[%clk 0:02:25.6]} 22. Nd7+
{[%clk 0:04:14.3]} 22... Ke7 {[%clk 0:02:21.3]} 23. Nc5 {[%clk 0:04:13.8]} 23...
Rd6 {[%clk 0:02:14.1]} 24. Nxb7 {[%clk 0:04:11.9]} 24... d3 {[%clk 0:02:12.4]}
25. Nxa5 {[%clk 0:04:10.3]} 25... d2 {[%clk 0:02:11.6]} 26. Nc6+ {[%clk
0:04:09.3]} 26... Kf8 {[%clk 0:01:55.3]} 27. Rd1 {[%clk 0:04:05.8]} 27... f5
{[%clk 0:01:43.4]} 28. Ne5 {[%clk 0:04:03.4]} 28... Rd5 {[%clk 0:01:33.7]} 29.
Bxd5 {[%clk 0:04:01.2]} 29... exd5 {[%clk 0:01:32]} 30. Rxd2 {[%clk 0:04:01.1]}
1-0

[Event "Live Chess"]
[Site "Chess.com"]
[Date "2024.06.02"]
[Round "-"]
[White "JanMur7"]
[Black "yarek"]
[Result "1-0"]
[WhiteElo "2280"]
[BlackElo "1733"]
[TimeControl "300"]
[EndTime "1:41:48 PDT"]
[Termination "JanMur7 won by resignation"]

1. d4 {[%clk 0:04:57.6]} 1... g6 {[%clk 0:04:55.7]} 2. c4 {[%clk 0:04:52.5]}
2... Bg7 {[%clk 0:04:55]} 3. Nc3 {[%clk 0:04:51.8]} 3... c6 {[%clk 0:04:54.3]}
4. e4 {[%clk 0:04:50.3]} 4... d6 {[%clk 0:04:53]} 5. Be2 {[%clk 0:04:47.8]} 5...
Nf6 {[%clk 0:04:52.4]} 6. Be3 {[%clk 0:04:41.3]} 6... O-O {[%clk 0:04:51.7]} 7.
g4 {[%clk 0:04:39.9]} 7... e5 {[%clk 0:04:43]} 8. d5 {[%clk 0:04:38.5]} 8...
cxd5 {[%clk 0:04:30.2]} 9. cxd5 {[%clk 0:04:38.4]} 9... Qa5 {[%clk 0:04:16.9]}
10. f3 {[%clk 0:04:31.2]} 10... Na6 {[%clk 0:03:53.5]} 11. h4 {[%clk 0:04:27.4]}
11... h5 {[%clk 0:03:44.2]} 12. g5 {[%clk 0:04:24.9]} 12... Nd7 {[%clk
0:03:40.1]} 13. a3 {[%clk 0:04:16.4]} 13... Qd8 {[%clk 0:03:27.8]} 14. Nh3
{[%clk 0:04:13.4]} 14... Ndc5 {[%clk 0:03:22.6]} 15. b4 {[%clk 0:04:04]} 15...
Nd7 {[%clk 0:03:08.1]} 16. Nf2 {[%clk 0:03:57.1]} 16... b6 {[%clk 0:03:02]} 17.
Rc1 {[%clk 0:03:51.8]} 17... Nc7 {[%clk 0:02:58.9]} 18. Nb5 {[%clk 0:03:44.7]}
18... Nxb5 {[%clk 0:02:54.4]} 19. Bxb5 {[%clk 0:03:44.6]} 19... Nb8 {[%clk
0:02:39.2]} 20. Qc2 {[%clk 0:03:40.8]} 20... Ba6 {[%clk 0:02:31.8]} 21. a4
{[%clk 0:03:27.4]} 21... Bxb5 {[%clk 0:02:27.7]} 22. axb5 {[%clk 0:03:27.3]}
22... a6 {[%clk 0:02:23.1]} 23. Qc7 {[%clk 0:03:24.6]} 23... axb5 {[%clk
0:02:14.4]} 24. Qxd8 {[%clk 0:03:17.5]} 24... Rxd8 {[%clk 0:02:12.5]} 25. Bxb6
{[%clk 0:03:15.4]} 25... Rd7 {[%clk 0:02:08.1]} 26. Rc8+ {[%clk 0:02:59.5]}
26... Kh7 {[%clk 0:02:03.5]} 27. Ba5 {[%clk 0:02:58]} 27... Na6 {[%clk
0:01:40.5]} 28. Rxa8 {[%clk 0:02:51]} 1-0

[Event "Live Chess"]
[Site "Chess.com"]
[Date "2024.06.02"]
[Round "-"]
[White "Queensandpawns"]
[Black "MagnersCarlsberg2870"]
[Result "1-0"]
[WhiteElo "2272"]
[BlackElo "1807"]
[TimeControl "300"]
[EndTime "1:41:55 PDT"]
[Termination "Queensandpawns won by resignation"]

1. e4 {[%clk 0:04:58.8]} 1... e5 {[%clk 0:04:57.8]} 2. d4 {[%clk 0:04:57.8]}
2... exd4 {[%clk 0:04:55.1]} 3. c3 {[%clk 0:04:57.7]} 3... Nf6 {[%clk
0:04:50.1]} 4. Bc4 {[%clk 0:04:52.6]} 4... d5 {[%clk 0:04:45.8]} 5. exd5 {[%clk
0:04:50.3]} 5... Nxd5 {[%clk 0:04:44.6]} 6. Nf3 {[%clk 0:04:49.6]} 6... Be6
{[%clk 0:04:36.4]} 7. O-O {[%clk 0:04:49]} 7... Bd6 {[%clk 0:04:34]} 8. Nxd4
{[%clk 0:04:48.4]} 8... Qh4 {[%clk 0:04:26.1]} 9. g3 {[%clk 0:04:44]} 9... Qh3
{[%clk 0:04:19.6]} 10. Nxe6 {[%clk 0:04:42.7]} 10... fxe6 {[%clk 0:04:18.3]} 11.
Bxd5 {[%clk 0:04:42]} 11... exd5 {[%clk 0:04:14.9]} 12. Qxd5 {[%clk 0:04:41.9]}
12... Nc6 {[%clk 0:04:11.7]} 13. Re1+ {[%clk 0:04:37.8]} 13... Kd7 {[%clk
0:04:10]} 14. Qf7+ {[%clk 0:04:33.8]} 14... Ne7 {[%clk 0:04:05.2]} 15. Bg5
{[%clk 0:04:27.8]} 15... Rae8 {[%clk 0:03:57.3]} 16. Bxe7 {[%clk 0:04:02.5]}
16... Rxe7 {[%clk 0:03:51.4]} 17. Rxe7+ {[%clk 0:03:58.5]} 17... Bxe7 {[%clk
0:03:50.4]} 18. Na3 {[%clk 0:03:57]} 18... Qg4 {[%clk 0:03:29.8]} 19. f3 {[%clk
0:03:49.4]} 19... Qa4 {[%clk 0:03:18.5]} 20. Nc4 {[%clk 0:03:37.3]} 20... Rf8
{[%clk 0:03:13.4]} 21. Ne5+ {[%clk 0:03:26.1]} 21... Kd6 {[%clk 0:03:11.3]} 22.
Nc4+ {[%clk 0:03:08]} 22... Kd7 {[%clk 0:03:05.7]} 23. Ne5+ {[%clk 0:02:45.6]}
23... Kd6 {[%clk 0:03:03.7]} 24. Qxg7 {[%clk 0:02:44.4]} 24... Qc2 {[%clk
0:02:51.9]} 25. Nc4+ {[%clk 0:02:38.9]} 25... Kc6 {[%clk 0:02:43.7]} 26. Qxe7
{[%clk 0:02:32.3]} 1-0

[Event "Live Chess"]
[Site "Chess.com"]
[Date "2024.06.02"]
[Round "-"]
[White "booktrunk"]
[Black "AndyJWise"]
[Result "1-0"]
[WhiteElo "1513"]
[BlackElo "1044"]
[TimeControl "300"]
[EndTime "1:41:57 PDT"]
[Termination "booktrunk won by resignation"]

1. d4 {[%clk 0:04:55.8]} 1... Nf6 {[%clk 0:04:56.9]} 2. Nc3 {[%clk 0:04:52.6]}
2... g6 {[%clk 0:04:55]} 3. Bf4 {[%clk 0:04:48.4]} 3... Bg7 {[%clk 0:04:51.8]}
4. Nb5 {[%clk 0:04:46.7]} 4... Nd5 {[%clk 0:04:44]} 5. Bg3 {[%clk 0:04:40.5]}
5... d6 {[%clk 0:04:32.8]} 6. c3 {[%clk 0:04:38.6]} 6... O-O {[%clk 0:04:27.3]}
7. h4 {[%clk 0:04:34.6]} 7... Nc6 {[%clk 0:04:17.4]} 8. h5 {[%clk 0:04:29.4]}
8... e5 {[%clk 0:04:11.9]} 9. hxg6 {[%clk 0:04:26.7]} 9... fxg6 {[%clk
0:04:10.8]} 10. dxe5 {[%clk 0:04:25.3]} 10... Nxe5 {[%clk 0:04:03.8]} 11. Qxd5+
{[%clk 0:04:22.2]} 1-0

[Event "Live Chess"]
[Site "Chess.com"]
[Date "2024.06.02"]
[Round "-"]
[White "JohanKjeldahl"]
[Black "TheSmoulderingMaster"]
[Result "0-1"]
[WhiteElo "1817"]
[BlackElo "1764"]
[TimeControl "300"]
[EndTime "1:42:10 PDT"]
[Termination "TheSmoulderingMaster won by resignation"]

1. e4 {[%clk 0:04:56.8]} 1... c5 {[%clk 0:04:58.7]} 2. Nf3 {[%clk 0:04:54.9]}
2... d6 {[%clk 0:04:57.8]} 3. d4 {[%clk 0:04:54.1]} 3... cxd4 {[%clk 0:04:56.3]}
4. Nxd4 {[%clk 0:04:53.7]} 4... Nc6 {[%clk 0:04:55]} 5. Nc3 {[%clk 0:04:53.2]}
5... Nf6 {[%clk 0:04:53.2]} 6. Be3 {[%clk 0:04:52.2]} 6... g6 {[%clk 0:04:52.4]}
7. f3 {[%clk 0:04:51]} 7... Bg7 {[%clk 0:04:51.5]} 8. Bc4 {[%clk 0:04:50]} 8...
O-O {[%clk 0:04:50.4]} 9. Qd2 {[%clk 0:04:49.2]} 9... Ne5 {[%clk 0:04:48.9]} 10.
Bb3 {[%clk 0:04:47.4]} 10... Bd7 {[%clk 0:04:47.9]} 11. h4 {[%clk 0:04:45.6]}
11... Qa5 {[%clk 0:04:46.5]} 12. O-O-O {[%clk 0:04:43.4]} 12... Rfc8 {[%clk
0:04:45.3]} 13. Kb1 {[%clk 0:04:41.7]} 13... b5 {[%clk 0:04:43.8]} 14. Nd5
{[%clk 0:04:36.9]} 14... Qd8 {[%clk 0:04:40.8]} 15. g4 {[%clk 0:04:27.8]} 15...
a5 {[%clk 0:04:35.4]} 16. a3 {[%clk 0:04:19.3]} 16... b4 {[%clk 0:04:29.9]} 17.
h5 {[%clk 0:04:16.9]} 17... a4 {[%clk 0:04:27.1]} 18. Ba2 {[%clk 0:04:12.1]}
18... b3 {[%clk 0:04:23.1]} 19. cxb3 {[%clk 0:04:10.2]} 19... axb3 {[%clk
0:04:22.3]} 20. Bxb3 {[%clk 0:04:08.6]} 20... Nc4 {[%clk 0:04:16.6]} 21. Bxc4
{[%clk 0:04:06]} 21... Rxc4 {[%clk 0:04:15.2]} 22. hxg6 {[%clk 0:04:03.5]} 22...
fxg6 {[%clk 0:04:13.4]} 23. Bh6 {[%clk 0:03:55.7]} 23... Bh8 {[%clk 0:03:59.9]}
24. Qd3 {[%clk 0:03:39.4]} 24... Rcc8 {[%clk 0:03:48.5]} 25. Qb3 {[%clk
0:03:33.2]} 25... e6 {[%clk 0:03:41.6]} 26. Nb6 {[%clk 0:03:23.7]} 26... Rcb8
{[%clk 0:03:34.2]} 27. Nxe6 {[%clk 0:03:19.7]} 27... Qxb6 {[%clk 0:03:28.5]} 28.
Qxb6 {[%clk 0:03:16.4]} 28... Rxb6 {[%clk 0:03:26.9]} 29. Nd4 {[%clk 0:03:07.8]}
29... Rxa3 {[%clk 0:03:22.8]} 30. Rhf1 {[%clk 0:03:00.1]} 30... Ba4 {[%clk
0:03:04.8]} 31. Rd2 {[%clk 0:02:54.2]} 31... Nd7 {[%clk 0:03:01.7]} 32. Ne6
{[%clk 0:02:29.8]} 32... Ne5 {[%clk 0:02:54.4]} 33. Rc1 {[%clk 0:02:16.8]} 33...
Nxf3 {[%clk 0:02:38.2]} 34. Rc8+ {[%clk 0:02:14.5]} 34... Kf7 {[%clk 0:02:37.5]}
35. Ng5+ {[%clk 0:02:08.9]} 35... Nxg5 {[%clk 0:02:34.5]} 36. Rxh8 {[%clk
0:02:00.9]} 36... Nxe4 {[%clk 0:02:30]} 37. Rxh7+ {[%clk 0:01:55.9]} 37... Ke6
{[%clk 0:02:26.8]} 38. Re2 {[%clk 0:01:51.5]} 38... Kd5 {[%clk 0:02:23.3]} 39.
Re7 {[%clk 0:01:45.2]} 39... Nc3+ {[%clk 0:02:20.4]} 40. Kc1 {[%clk 0:01:40.4]}
40... Ra1+ {[%clk 0:02:13.4]} 41. Kd2 {[%clk 0:01:38.2]} 41... Nxe2 {[%clk
0:02:11.1]} 42. Rxe2 {[%clk 0:01:35.5]} 42... Rxb2+ {[%clk 0:02:09.4]} 0-1

[Event "Live Chess"]
[Site "Chess.com"]
[Date "2024.06.02"]
[Round "-"]
[White "vincents82"]
[Black "r0ad_t0-gm"]
[Result "0-1"]
[WhiteElo "2010"]
[BlackElo "2253"]
[TimeControl "300"]
[EndTime "1:42:43 PDT"]
[Termination "r0ad_t0-gm won by resignation"]

1. e4 {[%clk 0:04:56.9]} 1... Nf6 {[%clk 0:04:59.9]} 2. e5 {[%clk 0:04:52.4]}
2... Nd5 {[%clk 0:04:59.3]} 3. d4 {[%clk 0:04:51.9]} 3... Nb6 {[%clk 0:04:59.2]}
4. Nf3 {[%clk 0:04:50.7]} 4... d6 {[%clk 0:04:59.1]} 5. Be2 {[%clk 0:04:49.6]}
5... Bg4 {[%clk 0:04:57.6]} 6. O-O {[%clk 0:04:48.6]} 6... Nc6 {[%clk
0:04:56.8]} 7. c3 {[%clk 0:04:47.2]} 7... g6 {[%clk 0:04:54.1]} 8. Bf4 {[%clk
0:04:45.2]} 8... Bg7 {[%clk 0:04:53.4]} 9. Nbd2 {[%clk 0:04:44.5]} 9... O-O
{[%clk 0:04:52.7]} 10. exd6 {[%clk 0:04:43.4]} 10... cxd6 {[%clk 0:04:50.6]} 11.
h3 {[%clk 0:04:42.9]} 11... Bxf3 {[%clk 0:04:49.1]} 12. Nxf3 {[%clk 0:04:41.3]}
12... e5 {[%clk 0:04:48.8]} 13. dxe5 {[%clk 0:04:40]} 13... dxe5 {[%clk
0:04:48.7]} 14. Bg3 {[%clk 0:04:32.3]} 14... Qe7 {[%clk 0:04:47.9]} 15. Bb5
{[%clk 0:04:22.4]} 15... Rac8 {[%clk 0:04:45.9]} 16. Bxc6 {[%clk 0:04:19.1]}
16... Rxc6 {[%clk 0:04:45.8]} 17. Qe2 {[%clk 0:04:18.1]} 17... Re8 {[%clk
0:04:44.5]} 18. Rfe1 {[%clk 0:04:17]} 18... f6 {[%clk 0:04:42.9]} 19. Rad1
{[%clk 0:04:15]} 19... Kh8 {[%clk 0:04:41.1]} 20. Nd2 {[%clk 0:04:03.6]} 20...
Na4 {[%clk 0:04:29.3]} 21. Nb3 {[%clk 0:03:55.1]} 21... Rd6 {[%clk 0:04:22.5]}
22. Rxd6 {[%clk 0:03:48.5]} 22... Qxd6 {[%clk 0:04:22.4]} 23. f3 {[%clk
0:03:46.8]} 23... Rd8 {[%clk 0:04:17.4]} 24. Bf2 {[%clk 0:03:45.3]} 24... b6
{[%clk 0:04:12]} 25. Be3 {[%clk 0:03:40.4]} 25... Qd3 {[%clk 0:04:04.7]} 26.
Qxd3 {[%clk 0:03:38.4]} 26... Rxd3 {[%clk 0:04:04.6]} 27. Re2 {[%clk 0:03:34.6]}
27... Nxb2 {[%clk 0:04:01.6]} 28. Bxb6 {[%clk 0:03:28.6]} 28... axb6 {[%clk
0:03:56.8]} 29. Rxb2 {[%clk 0:03:26.1]} 29... Rxc3 {[%clk 0:03:56.4]} 30. Nd2
{[%clk 0:03:20.8]} 30... Rc6 {[%clk 0:03:42.3]} 31. Kf2 {[%clk 0:03:12]} 31...
Bf8 {[%clk 0:03:37.9]} 32. Ke2 {[%clk 0:03:11.6]} 32... Bc5 {[%clk 0:03:33.9]}
33. Ne4 {[%clk 0:03:09.7]} 33... Bd4 {[%clk 0:03:32.7]} 34. Rd2 {[%clk
0:03:04.4]} 34... Kg7 {[%clk 0:03:31.4]} 35. g4 {[%clk 0:03:02.8]} 35... f5
{[%clk 0:03:27.3]} 36. Nf2 {[%clk 0:02:54.1]} 36... Kf6 {[%clk 0:03:23.5]} 37.
Nd3 {[%clk 0:02:52.6]} 37... Rc3 {[%clk 0:03:19.7]} 38. Nb4 {[%clk 0:02:50.5]}
38... Re3+ {[%clk 0:03:13.2]} 39. Kf2 {[%clk 0:02:30.1]} 39... Rb3+ {[%clk
0:03:11.5]} 40. Rxd4 {[%clk 0:02:29.3]} 40... Rb2+ {[%clk 0:03:11.1]} 41. Ke3
{[%clk 0:02:24.6]} 41... exd4+ {[%clk 0:03:10.3]} 42. Kxd4 {[%clk 0:02:23.1]}
42... Rxb4+ {[%clk 0:03:10.2]} 0-1